{"text_format":"1","workbook":"xlsx","n_sheets":15,"sheets":["platnost","Sezimovo Ústí II Kovosvit","Sezimovo Ústí rozcestí","sídl. Nad Lužnicí E55","Nový hřbitov","Na Kopečku","Černé mosty","Aut.nádr","Poliklinika","U Reálky","Písecké rozcestí","Nemocnice","Zimní stadion","Petrohradská ","Klokoty"],"not_rendered":{"charts":0,"images":1,"macros":1,"external_links":1,"defined_names":0,"comments":0,"pivot_tables":0},"unopened":[],"bounds":{"document_bytes":16777216,"sheet_cells":100000,"rows_first":2000,"rows_last":500,"rows_between":2000,"halvings":0,"cell_chars":16384,"cell_head_chars":4096},"cells_cut":0,"cells_raw":0,"read":"whole","date_system":"1900"}

{"sheet":"platnost","index":0,"n_rows":31,"n_cols":7,"rows_kept":31,"cut":false,"hidden":false,"merged":[]}
["platí od 31.8.2025"]
["    od 30.června do 29.srpna"]
[]
[]
[]
[]
[]
[]
[]
[]
[]
[]
[]
[]
[]
[]
[null,null,null,"Vysvětlivky:",null,null,"G - jede jen k AN"]
[null,null,null,null,null,null,"H - jede na Chýnovskou (k COMETT Plus)"]
[null,null,null,null,null,null,"I - jede do Údolní ulice pod ZŠ na Maredově vrchu"]
[null,null,null,null,null,null,{"$f":"[1]platnost!$G$18","v":"Všechny spoje s bezbariérově přístupným vozidlem"}]
[null,null,null,null,null,null,"POZOR - zastávka Nový hřbitov je NA ZNAMENÍ"]
[null,null,null,null,null,null,"C - jede pouze v pátek"]
["jízdné 16,- Kč",null,null,"platí 10 minut",null,null,"k - jede pouze ve dnech školního vyučování"]
["jízdné 20,- Kč",null,null,"platí 20 minut",null,null,"J - jede v pracovní den před prázdninami a staví pouze na AN"]
["jízdné 24,- Kč",null,null,"platí 60 minut",null,null,"B - končí u Domu s peč. službou"]
["jízdné 16,- Kč",null,null,"platí 60 minut",null,null,"POZOR od 23.00 hod do 05.00 hod platí noční tarif  "]
[]
["jízdné 10,- Kč",null,null,"platí 4 minuty"]
["jízdné 12,- Kč",null,null,"platí 8 minut"]
["jízdné 14,- Kč",null,null,"platí 18 minut"]
["jízdné 16,- Kč",null,null,"platí 60 minut"]

{"sheet":"Sezimovo Ústí II Kovosvit","index":1,"n_rows":39,"n_cols":29,"rows_kept":39,"cut":false,"hidden":false,"merged":[[0,22,3,25],[2,2,2,4]]}
["Platnost:",null,null,{"$f":"platnost!$A$1","v":"platí od 31.8.2025"},null,null,null,null,null,null,null,null,"informace: 381256366",null,null,null,null,null,null,null,null,null,17]
["COMETT PLUS, spol.s r.o.,Chýnovská 2115,Tábor 39002,mhd@comettplus.cz"]
["Linka : ",null,395017,null,null,null,null,null,null,"Zastávka:",null,"Sezimovo Ústí II Kovosvit"]
[null,null,"pásmo ","minut. vzdál."]
[0,"V","B",0,"Sezimovo Ústí II Kovosvit",null,null,null,null,null,null,"Pracovní dny",null,null,null,null,null,null,null,"Soboty",null,null,null,"Neděle + svátky",null,null,null,"Pracovní dny - omezení dopravy MHD"]
[5,"V","B",{"$f":"+D5+$A6","v":5},"sídl. Nad Lužnicí E 55",null,null,null,null,null,null,"Hod","minuty",null,null,null,null,null,null,"minuty",null,null,null,"minuty",null,null,null,{"$f":"platnost!$A$2","v":"    od 30.června do 29.srpna"}]
[3,"V","AB",8,"Nový hřbitov",null,null,null,null,null,null,0]
[1,"V","A",9,"Na Kopečku",null,null,null,null,null,null,1]
[2,"V","A",11,"Černé mosty",null,null,null,null,null,null,2]
[2,"V","A",13,"Autobusové nádraží",null,null,null,null,null,null,3]
[2,"V","A",15,"Poliklinika",null,null,null,null,null,null,4]
[2,"V","A",17,"U Reálky",null,null,null,null,null,null,5,20,null,null,null,null,null,null,30,null,null,null,30,null,null,null,20]
[2,"V","A",19,"Písecké rozcestí",null,null,null,null,null,null,6,"A30",55,null,null,null,null,null,30,null,null,null,30,null,null,null,"A30"]
[2,"V","A",21,"Nemocnice",null,null,null,null,null,null,7,"20",null,null,null,null,null,null,"05","50",null,null,"05","50",null,null,"20"]
[2,"V","A",23,"Zimní stadion",null,null,null,null,null,null,8,"05","A45",null,null,null,null,null,"45",null,null,null,"45",null,null,null,"15","30"]
[2,"V","A",25,"Petrohradská ",null,null,null,null,null,null,9,25,null,null,null,null,null,null,35,null,null,null,35,null,null,null,15]
[2,"V","A",27,"Klokoty",null,null,null,null,null,null,10,"05",null,null,null,null,null,null,10,null,null,null,10,null,null,null,40]
[1,"V","A",28,"Klokoty točna",null,null,null,null,null,null,11,10,null,null,null,null,null,null,25,null,null,null,25,null,null,null,"10","45"]
[null,null,null,null,null,null,null,null,null,null,null,12,25,null,null,null,null,null,null,50,null,null,null,50,null,null,null,25]
[null,null,null,null,null,null,null,null,null,null,null,13,15,null,null,null,null,null,null,55,null,null,null,55,null,null,null,"05"]
[null,null,null,null,null,null,null,null,null,null,null,14,"20",45,null,null,null,null,null,10,null,null,null,10,null,null,null,"00","40"]
[null,null,null,null,null,null,null,null,null,null,null,15,"25",50,null,null,null,null,null,"05",null,null,null,"05",null,null,null,35]
[null,null,{"$f":"platnost!$A23","v":"jízdné 16,- Kč"},null,null,{"$f":"platnost!$D23","v":"platí 10 minut"},null,null,null,null,null,16,"25",45,null,null,null,null,null,10,null,null,null,10,null,null,null,"00","55"]
[null,null,{"$f":"platnost!$A24","v":"jízdné 20,- Kč"},null,null,{"$f":"platnost!$D24","v":"platí 20 minut"},null,null,null,null,null,17,"05",45,null,null,null,null,null,"00",null,null,null,"00",null,null,null,15]
[null,null,{"$f":"platnost!$A25","v":"jízdné 24,- Kč"},null,null,{"$f":"platnost!$D25","v":"platí 60 minut"},null,null,null,null,null,18,25,null,null,null,null,null,null,"00",null,null,null,"00",null,null,null,"00","45"]
[null,null,null,null,null,null,null,null,null,null,null,19,30,null,null,null,null,null,null,35,null,null,null,35,null,null,null,"00"]
[null,null,null,null,null,null,null,null,null,null,null,20,30,null,null,null,null,null,null,null,null,null,null,null,null,null,null,"00","30"]
[null,null,null,null,null,null,null,null,null,null,null,21,35,null,null,null,null,null,null,"05",null,null,null,"05"]
[null,null,null,null,null,null,null,null,null,null,null,22]
[null,null,null,null,null,null,null,null,null,null,null,23]
[]
[null,null,null,null,null,null,null,null,null,"Vysvětlivky:",null,{"$f":"platnost!$G$21","v":"POZOR - zastávka Nový hřbitov je NA ZNAMENÍ"}]
[null,null,null,null,null,null,null,null,null,null,null,"A - po dobu uzavírky spoj obsluhuje zastávku Sezimovo Ústí rozcestí "]
[null,null,null,null,null,null,null,null,null,null,null,{"$f":"platnost!$G$20","v":"Všechny spoje s bezbariérově přístupným vozidlem"}]
[]
[]
[]
[]
[null,null,null,null,null,null,null,null,null,null,null," "]

{"sheet":"Sezimovo Ústí rozcestí","index":2,"n_rows":39,"n_cols":28,"rows_kept":39,"cut":false,"hidden":false,"merged":[[0,22,3,25],[2,2,2,4]]}
["Platnost:",null,null,{"$f":"platnost!$A$1","v":"platí od 31.8.2025"},null,null,null,null,null,null,null,null,"informace: 381256366",null,null,null,null,null,null,null,null,null,17]
["COMETT PLUS, spol.s r.o.,Chýnovská 2115,Tábor 39002,mhd@comettplus.cz"]
["Linka : ",null,395017,null,null,null,null,null,null,"Zastávka:",null,"Sezimovo Ústí I rozcestí"]
[null,null,"pásmo ","minut. vzdál."]
[0,null,"B",null,"Sezimovo Ústí II Kovosvit",null,null,null,null,null,null,"Pracovní dny",null,null,null,null,null,null,null,"Soboty",null,null,null,"Neděle + svátky",null,null,null,"Pracovní dny - omezení dopravy MHD"]
[null,"V","B",0,"Sezimovo Ústí I rozcestí",null,null,null,null,null,null,"Hod","minuty",null,null,null,null,null,null,"minuty",null,null,null,"minuty",null,null,null,{"$f":"platnost!$A$2","v":"    od 30.června do 29.srpna"}]
[3,"V","B",{"$f":"+D5+$A7","v":3},"sídl. Nad Lužnicí E 55",null,null,null,null,null,null,0]
[3,"V","AB",{"$f":"+D7+$A8","v":6},"Nový hřbitov",null,null,null,null,null,null,1]
[1,"V","A",7,"Na Kopečku",null,null,null,null,null,null,2]
[2,"V","A",9,"Černé mosty",null,null,null,null,null,null,3]
[2,"V","A",11,"Autobusové nádraží",null,null,null,null,null,null,4]
[2,"V","A",13,"Poliklinika",null,null,null,null,null,null,5]
[2,"V","A",15,"U Reálky",null,null,null,null,null,null,6,"A32",null,null,null,null,null,null,null,null,null,null,null,null,null,null,"A32"]
[2,"V","A",17,"Písecké rozcestí",null,null,null,null,null,null,7]
[2,"V","A",19,"Nemocnice",null,null,null,null,null,null,8,"A47"]
[2,"V","A",21,"Zimní stadion",null,null,null,null,null,null,9]
[2,"V","A",23,"Petrohradská ",null,null,null,null,null,null,10]
[2,"V","A",25,"Klokoty",null,null,null,null,null,null,11]
[1,"V","A",26,"Klokoty točna",null,null,null,null,null,null,12]
[null,null,null,null,null,null,null,null,null,null,null,13]
[null,null,null,null,null,null,null,null,null,null,null,14]
[null,null,null,null,null,null,null,null,null,null,null,15]
[null,null,{"$f":"platnost!$A23","v":"jízdné 16,- Kč"},null,null,{"$f":"platnost!$D23","v":"platí 10 minut"},null,null,null,null,null,16]
[null,null,{"$f":"platnost!$A24","v":"jízdné 20,- Kč"},null,null,{"$f":"platnost!$D24","v":"platí 20 minut"},null,null,null,null,null,17]
[null,null,{"$f":"platnost!$A25","v":"jízdné 24,- Kč"},null,null,{"$f":"platnost!$D25","v":"platí 60 minut"},null,null,null,null,null,18]
[null,null,null,null,null,null,null,null,null,null,null,19]
[null,null,null,null,null,null,null,null,null,null,null,20]
[null,null,null,null,null,null,null,null,null,null,null,21]
[null,null,null,null,null,null,null,null,null,null,null,22]
[null,null,null,null,null,null,null,null,null,null,null,23]
[]
[null,null,null,null,null,null,null,null,null,"Vysvětlivky:",null,{"$f":"platnost!$G$21","v":"POZOR - zastávka Nový hřbitov je NA ZNAMENÍ"}]
[null,null,null,null,null,null,null,null,null,null,null,"A - po dobu uzavírky spoj obsluhuje zastávku Sezimovo Ústí rozcestí "]
[null,null,null,null,null,null,null,null,null,null,null,{"$f":"platnost!$G$20","v":"Všechny spoje s bezbariérově přístupným vozidlem"}]
[]
[]
[]
[]
[null,null,null,null,null,null,null,null,null,null,null," "]

{"sheet":"sídl. Nad Lužnicí E55","index":3,"n_rows":34,"n_cols":36,"rows_kept":34,"cut":false,"hidden":false,"merged":[[0,22,3,25],[2,2,2,4]]}
["Platnost:",null,null,{"$f":"platnost!$A$1","v":"platí od 31.8.2025"},null,null,null,null,null,null,null,null,"informace: 381256366",null,null,null,null,null,null,null,null,null,17]
["COMETT PLUS, spol.s r.o.,Chýnovská 2115,Tábor 39002,mhd@comettplus.cz"]
["Linka : ",null,395017,null,null,null,null,null,null,"Zastávka:",null,null,{"$f":"E6","v":"sídl. Nad Lužnicí E 55"}]
[null,null,"pásmo ","minut. vzdál."]
[0,null,"B",null,"Sezimovo Ústí II Kovosvit",null,null,null,null,null,null,"Pracovní dny",null,null,null,null,null,null,null,"Soboty",null,null,null,"Neděle + svátky",null,null,null,"Pracovní dny - omezení dopravy MHD"]
[2,"V","B",0,"sídl. Nad Lužnicí E 55",null,null,null,null,null,null,"Hod","minuty",null,null,null,null,null,null,"minuty",null,null,null,"minuty",null,null,null,{"$f":"platnost!$A$2","v":"    od 30.června do 29.srpna"}]
[3,"V","AB",{"$f":"+D6+$A7","v":3},"Nový hřbitov",null,null,null,null,null,null,0]
[1,"V","A",4,"Na Kopečku",null,null,null,null,null,null,1]
[2,"V","A",6,"Černé mosty",null,null,null,null,null,null,2]
[2,"V","A",8,"Autobusové nádraží",null,null,null,null,null,null,3]
[2,"V","A",10,"Poliklinika",null,null,null,null,null,null,4]
[2,"V","A",12,"U Reálky",null,null,null,null,null,null,5,23,null,null,null,null,null,null,33,null,null,null,33,null,null,null,23]
[2,"V","A",14,"Písecké rozcestí",null,null,null,null,null,null,6,36,58,null,null,null,null,null,33,null,null,null,33,null,null,null,36]
[2,"V","A",16,"Nemocnice",null,null,null,null,null,null,7,23,null,null,null,null,null,null,8,53,null,null,8,53,null,null,23]
[2,"V","A",18,"Zimní stadion",null,null,null,null,null,null,8,8,51,null,null,null,null,null,48,null,null,null,48,null,null,null,18,33]
[2,"V","A",20,"Petrohradská ",null,null,null,null,null,null,9,28,null,null,null,null,null,null,38,null,null,null,38,null,null,null,18,null,null,null,null,null,null,null,3]
[2,"V","A",22,"Klokoty",null,null,null,null,null,null,10,8,null,null,null,null,null,null,13,null,null,null,13,null,null,null,43]
[1,"V","A",23,"Klokoty točna",null,null,null,null,null,null,11,13,null,null,null,null,null,null,28,null,null,null,28,null,null,null,13,48]
[null,null,null,null,null,null,null,null,null,null,null,12,28,null,null,null,null,null,null,53,null,null,null,53,null,null,null,28]
[null,null,null,null,null,null,null,null,null,null,null,13,18,null,null,null,null,null,null,58,null,null,null,58,null,null,null,8]
[2,null,null,null,null,null,null,null,null,null,null,14,23,48,null,null,null,null,null,13,null,null,null,13,null,null,null,3,43]
[2,null,null,null,null,null,null,null,null,null,null,15,28,53,null,null,null,null,null,8,null,null,null,8,null,null,null,38]
[2,null,{"$f":"platnost!$A23","v":"jízdné 16,- Kč"},null,null,{"$f":"platnost!$D23","v":"platí 10 minut"},null,null,null,null,null,16,28,48,null,null,null,null,null,13,null,null,null,13,null,null,null,3,58]
[2,null,{"$f":"platnost!$A24","v":"jízdné 20,- Kč"},null,null,{"$f":"platnost!$D24","v":"platí 20 minut"},null,null,null,null,null,17,8,48,null,null,null,null,null,3,null,null,null,3,null,null,null,18]
[1,null,{"$f":"platnost!$A25","v":"jízdné 24,- Kč"},null,null,{"$f":"platnost!$D25","v":"platí 60 minut"},null,null,null,null,null,18,28,null,null,null,null,null,null,3,null,null,null,3,null,null,null,3,48]
[null,null,null,null,null,null,null,null,null,null,null,19,33,null,null,null,null,null,null,38,null,null,null,38,null,null,null,3]
[null,null,null,null,null,null,null,null,null,null,null,20,33,null,null,null,null,null,null,null,null,null,null,null,null,null,null,3,33]
[null,null,null,null,null,null,null,null,null,null,null,21,38,null,null,null,null,null,null,8,null,null,null,8]
[null,null,null,null,null,null,null,null,null,null,null,22]
[null,null,null,null,null,null,null,null,null,null,null,23]
[]
[null,null,null,null,null,null,null,null,null,"Vysvětlivky:",null,{"$f":"platnost!$G$21","v":"POZOR - zastávka Nový hřbitov je NA ZNAMENÍ"}]
[]
[null,null,null,null,null,null,null,null,null,null,null,{"$f":"platnost!$G$20","v":"Všechny spoje s bezbariérově přístupným vozidlem"}]

{"sheet":"Nový hřbitov","index":4,"n_rows":34,"n_cols":38,"rows_kept":34,"cut":false,"hidden":false,"merged":[[0,22,3,25],[2,2,2,4]]}
["Platnost:",null,null,{"$f":"platnost!$A$1","v":"platí od 31.8.2025"},null,null,null,null,null,null,null,null,"informace: 381256366",null,null,null,null,null,null,null,null,null,17]
["COMETT PLUS, spol.s r.o.,Chýnovská 2115,Tábor 39002,mhd@comettplus.cz"]
["Linka : ",null,395017,null,null,null,null,null,null,"Zastávka:",null,null,"Nový hřbitov"]
[null,null,"pásmo ","minut. vzdál."]
[0,null,"B",null,"Sezimovo Ústí II Kovosvit",null,null,null,null,null,"Pracovní dny",null,null,null,null,null,null,null,"Soboty",null,null,null,"Neděle + svátky",null,null,null,"Pracovní dny - omezení dopravy MHD"]
[2,null,"B",null,"Sezimovo Ústí I rozcestí",null,null,null,null,null,"Hod","minuty",null,null,null,null,null,null,"minuty",null,null,null,"minuty",null,null,null,{"$f":"platnost!$A$2","v":"    od 30.června do 29.srpna"}]
[1,null,"B",null,"Sezimovo Ústí I náměstí",null,null,null,null,null,0]
[2,null,"B",null,"sídl. Nad Lužnicí",null,null,null,null,null,1]
[3,"V","AB",0,"Nový hřbitov",null,null,null,null,null,2]
[1,"V","A",{"$f":"+D9+$A10","v":1},"Na Kopečku",null,null,null,null,null,3]
[2,"V","A",{"$f":"+D10+$A11","v":3},"Černé mosty",null,null,null,null,null,4]
[2,"V","A",5,"Autobusové nádraží",null,null,null,null,null,5,25,null,null,null,null,null,null,35,null,null,null,35,null,null,null,25]
[2,"V","A",7,"Poliklinika",null,null,null,null,null,6,38,null,null,null,null,null,null,35,null,null,null,35,null,null,null,38]
[2,"V","A",9,"U Reálky",null,null,null,null,null,7,"00",25,null,null,null,null,null,10,55,null,null,10,55,null,null,25]
[2,"V","A",11,"Písecké rozcestí",null,null,null,null,null,8,10,53,null,null,null,null,null,50,null,null,null,50,null,null,null,20,35]
[2,"V","A",13,"Nemocnice",null,null,null,null,null,9,30,null,null,null,null,null,null,40,null,null,null,40,null,null,null,20]
[2,"V","A",15,"Zimní stadion",null,null,null,null,null,10,10,null,null,null,null,null,null,15,null,null,null,15,null,null,null,45]
[2,"V","A",17,"Petrohradská ",null,null,null,null,null,11,15,null,null,null,null,null,null,30,null,null,null,30,null,null,null,15,50,null,null,null,null,null,null,null,null,null,2]
[2,"V","A",19,"Klokoty",null,null,null,null,null,12,30,null,null,null,null,null,null,55,null,null,null,55,null,null,null,30]
[1,"V","A",20,"Klokoty točna",null,null,null,null,null,13,20,null,null,null,null,null,null,null,null,null,null,null,null,null,null,10]
[2,null,null,null,null,null,null,null,null,null,14,25,50,null,null,null,null,null,"00","15",null,null,"00","15",null,null,5,45]
[2,null,null,null,null,null,null,null,null,null,15,30,55,null,null,null,null,null,10,null,null,null,10,null,null,null,40]
[2,null,{"$f":"platnost!$A23","v":"jízdné 16,- Kč"},null,null,{"$f":"platnost!$D23","v":"platí 10 minut"},null,null,null,null,16,30,50,null,null,null,null,null,15,null,null,null,15,null,null,null,5]
[2,null,{"$f":"platnost!$A24","v":"jízdné 20,- Kč"},null,null,{"$f":"platnost!$D24","v":"platí 20 minut"},null,null,null,null,17,10,50,null,null,null,null,null,5,null,null,null,5,null,null,null,0,20]
[1,null,{"$f":"platnost!$A25","v":"jízdné 24,- Kč"},null,null,{"$f":"platnost!$D25","v":"platí 60 minut"},null,null,null,null,18,30,null,null,null,null,null,null,5,null,null,null,5,null,null,null,5,50]
[null,null,null,null,null,null,null,null,null,null,19,35,null,null,null,null,null,null,40,null,null,null,40,null,null,null,5]
[null,null,null,null,null,null,null,null,null,null,20,35,null,null,null,null,null,null,null,null,null,null,null,null,null,null,5,35]
[null,null,null,null,null,null,null,null,null,null,21,40,null,null,null,null,null,null,10,null,null,null,10]
[null,null,null,null,null,null,null,null,null,null,22]
[null,null,null,null,null,null,null,null,null,null,23]
[]
[null,null,null,null,null,null,null,null,null,"Vysvětlivky:",null,{"$f":"platnost!$G$21","v":"POZOR - zastávka Nový hřbitov je NA ZNAMENÍ"}]
[]
[null,null,null,null,null,null,null,null,null,null,null,{"$f":"platnost!$G$20","v":"Všechny spoje s bezbariérově přístupným vozidlem"}]

{"sheet":"Na Kopečku","index":5,"n_rows":32,"n_cols":40,"rows_kept":32,"cut":false,"hidden":false,"merged":[[0,22,3,25],[2,2,2,4]]}
["Platnost:",null,null,{"$f":"platnost!$A$1","v":"platí od 31.8.2025"},null,null,null,null,null,null,null,null,"informace: 381256366",null,null,null,null,null,null,null,null,null,17]
["COMETT PLUS, spol.s r.o.,Chýnovská 2115,Tábor 39002,mhd@comettplus.cz"]
["Linka : ",null,395017,null,null,null,null,null,null,"Zastávka:",null,null,"Na Kopečku"]
[null,null,"pásmo ","minut. vzdál."]
[0,null,"B",null,"Sezimovo Ústí II Kovosvit",null,null,null,null,null,"Pracovní dny",null,null,null,null,null,null,null,"Soboty",null,null,null,"Neděle + svátky",null,null,null,"Pracovní dny - omezení dopravy MHD"]
[2,null,"B",null,"Sezimovo Ústí I rozcestí",null,null,null,null,null,"Hod","minuty",null,null,null,null,null,null,"minuty",null,null,null,"minuty",null,null,null,{"$f":"platnost!$A$2","v":"    od 30.června do 29.srpna"}]
[1,null,"B",null,"Sezimovo Ústí I náměstí",null,null,null,null,null,0]
[2,null,"B",null,"sídl. Nad Lužnicí",null,null,null,null,null,1]
[3,null,"AB",null,"Nový hřbitov",null,null,null,null,null,2]
[1,"V","A",0,"Na Kopečku",null,null,null,null,null,3]
[2,"V","A",{"$f":"+D10+$A11","v":2},"Černé mosty",null,null,null,null,null,4]
[2,"V","A",{"$f":"+D11+$A12","v":4},"Autobusové nádraží",null,null,null,null,null,5,26,null,null,null,null,null,null,36,null,null,null,36,null,null,null,26]
[2,"V","A",6,"Poliklinika",null,null,null,null,null,6,39,null,null,null,null,null,null,36,null,null,null,36,null,null,null,39]
[2,"V","A",8,"U Reálky",null,null,null,null,null,7,1,26,null,null,null,null,null,11,56,null,null,11,56,null,null,26]
[2,"V","A",10,"Písecké rozcestí",null,null,null,null,null,8,11,54,null,null,null,null,null,51,null,null,null,51,null,null,null,21,36]
[2,"V","A",12,"Nemocnice",null,null,null,null,null,9,31,null,null,null,null,null,null,41,null,null,null,41,null,null,null,21]
[2,"V","A",14,"Zimní stadion",null,null,null,null,null,10,11,null,null,null,null,null,null,16,null,null,null,16,null,null,null,46]
[2,"V","A",16,"Petrohradská ",null,null,null,null,null,11,16,null,null,null,null,null,null,31,null,null,null,31,null,null,null,16,51,null,null,null,null,null,null,null,null,null,null,null,1]
[2,"V","A",18,"Klokoty",null,null,null,null,null,12,31,null,null,null,null,null,null,56,null,null,null,56,null,null,null,31]
[1,"V","A",19,"Klokoty točna",null,null,null,null,null,13,21,null,null,null,null,null,null,null,null,null,null,null,null,null,null,11]
[2,null,null,null,null,null,null,null,null,null,14,26,51,null,null,null,null,null,"01","16",null,null,"01","16",null,null,6,46]
[2,null,null,null,null,null,null,null,null,null,15,31,56,null,null,null,null,null,11,null,null,null,11,null,null,null,41]
[2,null,{"$f":"platnost!$A23","v":"jízdné 16,- Kč"},null,null,{"$f":"platnost!$D23","v":"platí 10 minut"},null,null,null,null,16,31,51,null,null,null,null,null,16,null,null,null,16,null,null,null,6]
[2,null,{"$f":"platnost!$A24","v":"jízdné 20,- Kč"},null,null,{"$f":"platnost!$D24","v":"platí 20 minut"},null,null,null,null,17,11,51,null,null,null,null,null,6,null,null,null,6,null,null,null,1,21]
[1,null,{"$f":"platnost!$A25","v":"jízdné 24,- Kč"},null,null,{"$f":"platnost!$D25","v":"platí 60 minut"},null,null,null,null,18,31,null,null,null,null,null,null,6,null,null,null,6,null,null,null,6,51]
[null,null,null,null,null,null,null,null,null,null,19,36,null,null,null,null,null,null,41,null,null,null,41,null,null,null,6]
[null,null,null,null,null,null,null,null,null,null,20,36,null,null,null,null,null,null,null,null,null,null,null,null,null,null,6,36]
[null,null,null,null,null,null,null,null,null,null,21,41,null,null,null,null,null,null,11,null,null,null,11]
[null,null,null,null,null,null,null,null,null,null,22]
[null,null,null,null,null,null,null,null,null,null,23]
[]
[null,null,null,null,null,null,null,null,null,null,{"$f":"platnost!$G$20","v":"Všechny spoje s bezbariérově přístupným vozidlem"}]

{"sheet":"Černé mosty","index":6,"n_rows":32,"n_cols":36,"rows_kept":32,"cut":false,"hidden":false,"merged":[[0,22,3,25],[2,2,2,4]]}
["Platnost:",null,null,{"$f":"platnost!$A$1","v":"platí od 31.8.2025"},null,null,null,null,null,null,null,null,"informace: 381256366",null,null,null,null,null,null,null,null,null,17]
["COMETT PLUS, spol.s r.o.,Chýnovská 2115,Tábor 39002,mhd@comettplus.cz"]
["Linka : ",null,395017,null,null,null,null,null,null,"Zastávka:",null,null,"Černé mosty"]
[null,null,"pásmo ","minut. vzdál."]
[0,null,"B",null,"Sezimovo Ústí II Kovosvit",null,null,null,null,null,"Pracovní dny",null,null,null,null,null,null,null,null,"Soboty",null,null,null,"Neděle + svátky",null,null,null,"Pracovní dny - omezení dopravy MHD"]
[2,null,"B",null,"Sezimovo Ústí I rozcestí",null,null,null,null,null,"Hod","minuty",null,null,null,null,null,null,null,"minuty",null,null,null,"minuty",null,null,null,{"$f":"platnost!$A$2","v":"    od 30.června do 29.srpna"}]
[1,null,"B",null,"Sezimovo Ústí I náměstí",null,null,null,null,null,0]
[2,null,"B",null,"sídl. Nad Lužnicí",null,null,null,null,null,1]
[3,null,"AB",null,"Nový hřbitov",null,null,null,null,null,2]
[1,null,"A",null,"Na Kopečku",null,null,null,null,null,3]
[2,"V","A",0,"Černé mosty",null,null,null,null,null,4]
[2,"V","A",{"$f":"+D11+$A12","v":2},"Autobusové nádraží",null,null,null,null,null,5,28,null,null,null,null,null,null,null,38,null,null,null,38,null,null,null,28]
[2,"V","A",{"$f":"+D12+$A13","v":4},"Poliklinika",null,null,null,null,null,6,41,null,null,null,null,null,null,null,38,null,null,null,38,null,null,null,41]
[2,"V","A",6,"U Reálky",null,null,null,null,null,7,3,28,null,null,null,null,null,null,13,58,null,null,13,58,null,null,28]
[2,"V","A",8,"Písecké rozcestí",null,null,null,null,null,8,13,56,null,null,null,null,null,null,53,null,null,null,53,null,null,null,23,38]
[2,"V","A",10,"Nemocnice",null,null,null,null,null,9,33,null,null,null,null,null,null,null,43,null,null,null,43,null,null,null,23]
[2,"V","A",12,"Zimní stadion",null,null,null,null,null,10,13,null,null,null,null,null,null,null,18,null,null,null,18,null,null,null,48]
[2,"V","A",14,"Petrohradská ",null,null,null,null,null,11,18,null,null,null,null,null,null,null,33,null,null,null,33,null,null,null,18,53,null,null,null,null,null,null,2]
[2,"V","A",16,"Klokoty",null,null,null,null,null,12,33,null,null,null,null,null,null,null,58,null,null,null,58,null,null,null,33]
[1,"V","A",17,"Klokoty točna",null,null,null,null,null,13,23,null,null,null,null,null,null,null,null,null,null,null,null,null,null,null,13]
[2,null,null,null,null,null,null,null,null,null,14,28,53,null,null,null,null,null,null,"03","18",null,null,"03","18",null,null,8,48]
[2,null,null,null,null,null,null,null,null,null,15,33,58,null,null,null,null,null,null,13,null,null,null,13,null,null,null,43]
[2,null,{"$f":"platnost!$A23","v":"jízdné 16,- Kč"},null,null,{"$f":"platnost!$D23","v":"platí 10 minut"},null,null,null,null,16,33,53,null,null,null,null,null,null,18,null,null,null,18,null,null,null,8]
[2,null,{"$f":"platnost!$A24","v":"jízdné 20,- Kč"},null,null,{"$f":"platnost!$D24","v":"platí 20 minut"},null,null,null,null,17,13,53,null,null,null,null,null,null,8,null,null,null,8,null,null,null,3,23]
[1,null,{"$f":"platnost!$A25","v":"jízdné 24,- Kč"},null,null,{"$f":"platnost!$D25","v":"platí 60 minut"},null,null,null,null,18,33,null,null,null,null,null,null,null,8,null,null,null,8,null,null,null,8,53]
[null,null,null,null,null,null,null,null,null,null,19,38,null,null,null,null,null,null,null,43,null,null,null,43,null,null,null,8]
[null,null,null,null,null,null,null,null,null,null,20,38,null,null,null,null,null,null,null,null,null,null,null,null,null,null,null,8,38]
[null,null,null,null,null,null,null,null,null,null,21,43,null,null,null,null,null,null,null,13,null,null,null,13]
[null,null,null,null,null,null,null,null,null,null,22]
[null,null,null,null,null,null,null,null,null,null,23]
[]
[null,null,null,null,null,null,null,null,null,null,{"$f":"platnost!$G$20","v":"Všechny spoje s bezbariérově přístupným vozidlem"}]

{"sheet":"Aut.nádr","index":7,"n_rows":32,"n_cols":36,"rows_kept":32,"cut":false,"hidden":false,"merged":[[0,22,3,25],[2,2,2,4]]}
["Platnost:",null,null,{"$f":"platnost!$A$1","v":"platí od 31.8.2025"},null,null,null,null,null,null,null,null,"informace: 381256366",null,null,null,null,null,null,null,null,null,17]
["COMETT PLUS, spol.s r.o.,Chýnovská 2115,Tábor 39002,mhd@comettplus.cz"]
["Linka : ",null,395017,null,null,null,null,null,null,"Zastávka:",null,null,"Autobusové nádraží"]
[null,null,"pásmo ","minut. vzdál."]
[0,null,"B",null,"Sezimovo Ústí II Kovosvit",null,null,null,null,null,"Pracovní dny",null,null,null,null,null,null,null,null,"Soboty",null,null,null,"Neděle + svátky",null,null,null,"Pracovní dny - omezení dopravy MHD"]
[2,null,"B",null,"Sezimovo Ústí I rozcestí",null,null,null,null,null,"Hod","minuty",null,null,null,null,null,null,null,"minuty",null,null,null,"minuty",null,null,null,{"$f":"platnost!$A$2","v":"    od 30.června do 29.srpna"}]
[1,null,"B",null,"Sezimovo Ústí I náměstí",null,null,null,null,null,0]
[2,null,"B",null,"sídl. Nad Lužnicí",null,null,null,null,null,1]
[3,null,"AB",null,"Nový hřbitov",null,null,null,null,null,2]
[1,null,"A",null,"Na Kopečku",null,null,null,null,null,3]
[2,null,"A",null,"Černé mosty",null,null,null,null,null,4]
[2,"V","A",0,"Autobusové nádraží",null,null,null,null,null,5,30,null,null,null,null,null,null,null,40,null,null,null,40,null,null,null,30]
[2,"V","A",{"$f":"+D12+$A13","v":2},"Poliklinika",null,null,null,null,null,6,43,null,null,null,null,null,null,null,40,null,null,null,40,null,null,null,43]
[2,"V","A",{"$f":"+D13+$A14","v":4},"U Reálky",null,null,null,null,null,7,5,30,null,null,null,null,null,null,15,null,null,null,15,null,null,null,30]
[2,"V","A",6,"Písecké rozcestí",null,null,null,null,null,8,15,58,null,null,null,null,null,null,0,55,null,null,0,55,null,null,25,40]
[2,"V","A",8,"Nemocnice",null,null,null,null,null,9,35,null,null,null,null,null,null,null,45,null,null,null,45,null,null,null,25]
[2,"V","A",10,"Zimní stadion",null,null,null,null,null,10,15,null,null,null,null,null,null,null,20,null,null,null,20,null,null,null,50]
[2,"V","A",12,"Petrohradská ",null,null,null,null,null,11,20,null,null,null,null,null,null,null,35,null,null,null,35,null,null,null,20,55]
[2,"V","A",14,"Klokoty",null,null,null,null,null,12,35,null,null,null,null,null,null,null,null,null,null,null,null,null,null,null,35,null,null,null,null,null,null,null,2]
[1,"V","A",15,"Klokoty točna",null,null,null,null,null,13,25,null,null,null,null,null,null,null,0,null,null,null,0,null,null,null,15]
[2,null,null,null,null,null,null,null,null,null,14,30,55,null,null,null,null,null,null,5,20,null,null,5,20,null,null,10,50]
[2,null,null,null,null,null,null,null,null,null,15,35,null,null,null,null,null,null,null,15,null,null,null,15,null,null,null,45]
[2,null,{"$f":"platnost!$A23","v":"jízdné 16,- Kč"},null,null,{"$f":"platnost!$D23","v":"platí 10 minut"},null,null,null,null,16,0,35,55,null,null,null,null,null,20,null,null,null,20,null,null,null,10]
[2,null,{"$f":"platnost!$A24","v":"jízdné 20,- Kč"},null,null,{"$f":"platnost!$D24","v":"platí 20 minut"},null,null,null,null,17,15,55,null,null,null,null,null,null,10,null,null,null,10,null,null,null,5,25]
[1,null,{"$f":"platnost!$A25","v":"jízdné 24,- Kč"},null,null,{"$f":"platnost!$D25","v":"platí 60 minut"},null,null,null,null,18,35,null,null,null,null,null,null,null,10,null,null,null,10,null,null,null,10,55]
[null,null,null,null,null,null,null,null,null,null,19,40,null,null,null,null,null,null,null,45,null,null,null,45,null,null,null,10]
[null,null,null,null,null,null,null,null,null,null,20,40,null,null,null,null,null,null,null,null,null,null,null,null,null,null,null,10,40]
[null,null,null,null,null,null,null,null,null,null,21,45,null,null,null,null,null,null,null,15,null,null,null,15]
[null,null,null,null,null,null,null,null,null,null,22]
[null,null,null,null,null,null,null,null,null,null,23]
[]
[null,null,null,null,null,null,null,null,null,null,{"$f":"platnost!$G$20","v":"Všechny spoje s bezbariérově přístupným vozidlem"}]

{"sheet":"Poliklinika","index":8,"n_rows":32,"n_cols":37,"rows_kept":32,"cut":false,"hidden":false,"merged":[[0,22,3,25],[2,2,2,4]]}
["Platnost:",null,null,{"$f":"platnost!$A$1","v":"platí od 31.8.2025"},null,null,null,null,null,null,null,null,"informace: 381256366",null,null,null,null,null,null,null,null,null,17]
["COMETT PLUS, spol.s r.o.,Chýnovská 2115,Tábor 39002,mhd@comettplus.cz"]
["Linka : ",null,395017,null,null,null,null,null,null,"Zastávka:",null,null,"Poliklinika"]
[null,null,"pásmo ","minut. vzdál."]
[0,null,"B",null,"Sezimovo Ústí II Kovosvit",null,null,null,null,"Pracovní dny",null,null,null,null,null,null,null,null,"Soboty",null,null,null,"Neděle + svátky",null,null,null,"Pracovní dny - omezení dopravy MHD"]
[2,null,"B",null,"Sezimovo Ústí I rozcestí",null,null,null,null,"Hod","minuty",null,null,null,null,null,null,null,"minuty",null,null,null,"minuty",null,null,null,{"$f":"platnost!$A$2","v":"    od 30.června do 29.srpna"}]
[1,null,"B",null,"Sezimovo Ústí I náměstí",null,null,null,null,0]
[2,null,"B",null,"sídl. Nad Lužnicí",null,null,null,null,1]
[3,null,"AB",null,"Nový hřbitov",null,null,null,null,2]
[1,null,"A",null,"Na Kopečku",null,null,null,null,3]
[2,null,"A",null,"Černé mosty",null,null,null,null,4]
[2,null,"A",null,"Autobusové nádraží",null,null,null,null,5,32,null,null,null,null,null,null,null,42,null,null,null,42,null,null,null,32]
[2,"V","A",0,"Poliklinika",null,null,null,null,6,45,null,null,null,null,null,null,null,42,null,null,null,42,null,null,null,45]
[2,"V","A",{"$f":"+D13+$A14","v":2},"U Reálky",null,null,null,null,7,7,32,null,null,null,null,null,null,17,null,null,null,17,null,null,null,32]
[2,"V","A",{"$f":"+D14+$A15","v":4},"Písecké rozcestí",null,null,null,null,8,17,null,null,null,null,null,null,null,2,57,null,null,2,57,null,null,27,42]
[2,"V","A",6,"Nemocnice",null,null,null,null,9,0,37,null,null,null,null,null,null,47,null,null,null,47,null,null,null,27]
[2,"V","A",8,"Zimní stadion",null,null,null,null,10,17,null,null,null,null,null,null,null,22,null,null,null,22,null,null,null,52]
[2,"V","A",10,"Petrohradská ",null,null,null,null,11,22,null,null,null,null,null,null,null,37,null,null,null,37,null,null,null,22,57]
[2,"V","A",12,"Klokoty",null,null,null,null,12,37,null,null,null,null,null,null,null,null,null,null,null,null,null,null,null,37]
[1,"V","A",13,"Klokoty točna",null,null,null,null,13,27,null,null,null,null,null,null,null,2,null,null,null,2,null,null,null,17,null,null,null,null,null,null,null,null,null,2]
[2,null,null,null,null,null,null,null,null,14,32,57,null,null,null,null,null,null,7,22,null,null,7,22,null,null,12,52]
[2,null,null,null,null,null,null,null,null,15,37,null,null,null,null,null,null,null,17,null,null,null,17,null,null,null,47]
[2,null,{"$f":"platnost!$A23","v":"jízdné 16,- Kč"},null,null,{"$f":"platnost!$D23","v":"platí 10 minut"},null,null,null,16,2,37,57,null,null,null,null,null,22,null,null,null,22,null,null,null,12]
[2,null,{"$f":"platnost!$A24","v":"jízdné 20,- Kč"},null,null,{"$f":"platnost!$D24","v":"platí 20 minut"},null,null,null,17,17,57,null,null,null,null,null,null,12,null,null,null,12,null,null,null,7,27]
[1,null,{"$f":"platnost!$A25","v":"jízdné 24,- Kč"},null,null,{"$f":"platnost!$D25","v":"platí 60 minut"},null,null,null,18,37,null,null,null,null,null,null,null,12,null,null,null,12,null,null,null,12,57]
[null,null,null,null,null,null,null,null,null,19,42,null,null,null,null,null,null,null,47,null,null,null,47,null,null,null,12]
[null,null,null,null,null,null,null,null,null,20,42,null,null,null,null,null,null,null,null,null,null,null,null,null,null,null,12,42]
[null,null,null,null,null,null,null,null,null,21,47,null,null,null,null,null,null,null,17,null,null,null,17]
[null,null,null,null,null,null,null,null,null,22]
[null,null,null,null,null,null,null,null,null,23]
[]
[null,null,null,null,null,null,null,null,null,{"$f":"platnost!$G$20","v":"Všechny spoje s bezbariérově přístupným vozidlem"}]

{"sheet":"U Reálky","index":9,"n_rows":32,"n_cols":37,"rows_kept":32,"cut":false,"hidden":false,"merged":[[0,22,3,25],[2,2,2,4]]}
["Platnost:",null,null,{"$f":"platnost!$A$1","v":"platí od 31.8.2025"},null,null,null,null,null,null,null,null,"informace: 381256366",null,null,null,null,null,null,null,null,null,17]
["COMETT PLUS, spol.s r.o.,Chýnovská 2115,Tábor 39002,mhd@comettplus.cz"]
["Linka : ",null,395017,null,null,null,null,null,null,"Zastávka:",null,null,"U Reálky"]
[null,null,"pásmo ","minut. vzdál."]
[0,null,"B",null,"Sezimovo Ústí II Kovosvit",null,null,null,null,"Pracovní dny",null,null,null,null,null,null,null,null,"Soboty",null,null,null,"Neděle + svátky",null,null,null,"Pracovní dny - omezení dopravy MHD"]
[2,null,"B",null,"Sezimovo Ústí I rozcestí",null,null,null,null,"Hod","minuty",null,null,null,null,null,null,null,"minuty",null,null,null,"minuty",null,null,null,{"$f":"platnost!$A$2","v":"    od 30.června do 29.srpna"}]
[1,null,"B",null,"Sezimovo Ústí I náměstí",null,null,null,null,0]
[2,null,"B",null,"sídl. Nad Lužnicí",null,null,null,null,1]
[3,null,"AB",null,"Nový hřbitov",null,null,null,null,2]
[1,null,"A",null,"Na Kopečku",null,null,null,null,3]
[2,null,"A",null,"Černé mosty",null,null,null,null,4]
[2,null,"A",null,"Autobusové nádraží",null,null,null,null,5,34,null,null,null,null,null,null,null,44,null,null,null,44,null,null,null,34]
[2,null,"A",null,"Poliklinika",null,null,null,null,6,47,null,null,null,null,null,null,null,44,null,null,null,44,null,null,null,47]
[2,"V","A",0,"U Reálky",null,null,null,null,7,9,34,null,null,null,null,null,null,19,null,null,null,19,null,null,null,34]
[2,"V","A",{"$f":"+D14+$A15","v":2},"Písecké rozcestí",null,null,null,null,8,19,null,null,null,null,null,null,null,4,59,null,null,4,59,null,null,29,44]
[2,"V","A",4,"Nemocnice",null,null,null,null,9,2,39,null,null,null,null,null,null,49,null,null,null,49,null,null,null,29]
[2,"V","A",6,"Zimní stadion",null,null,null,null,10,19,null,null,null,null,null,null,null,24,null,null,null,24,null,null,null,54]
[2,"V","A",8,"Petrohradská ",null,null,null,null,11,24,null,null,null,null,null,null,null,39,null,null,null,39,null,null,null,24,59]
[2,"V","A",10,"Klokoty",null,null,null,null,12,39,null,null,null,null,null,null,null,null,null,null,null,null,null,null,null,39]
[1,"V","A",11,"Klokoty točna",null,null,null,null,13,29,null,null,null,null,null,null,null,4,null,null,null,4,null,null,null,19,null,null,null,null,null,null,null,null,null,2]
[2,null,null,null,null,null,null,null,null,14,34,59,null,null,null,null,null,null,9,24,null,null,9,24,null,null,14,54]
[2,null,null,null,null,null,null,null,null,15,39,null,null,null,null,null,null,null,19,null,null,null,19,null,null,null,49]
[2,null,{"$f":"platnost!$A23","v":"jízdné 16,- Kč"},null,null,{"$f":"platnost!$D23","v":"platí 10 minut"},null,null,null,16,4,39,59,null,null,null,null,null,24,null,null,null,24,null,null,null,14]
[2,null,{"$f":"platnost!$A24","v":"jízdné 20,- Kč"},null,null,{"$f":"platnost!$D24","v":"platí 20 minut"},null,null,null,17,19,59,null,null,null,null,null,null,14,null,null,null,14,null,null,null,9,29]
[1,null,{"$f":"platnost!$A25","v":"jízdné 24,- Kč"},null,null,{"$f":"platnost!$D25","v":"platí 60 minut"},null,null,null,18,39,null,null,null,null,null,null,null,14,null,null,null,14,null,null,null,14,59]
[null,null,null,null,null,null,null,null,null,19,44,null,null,null,null,null,null,null,49,null,null,null,49,null,null,null,14]
[null,null,null,null,null,null,null,null,null,20,44,null,null,null,null,null,null,null,null,null,null,null,null,null,null,null,14,44]
[null,null,null,null,null,null,null,null,null,21,49,null,null,null,null,null,null,null,19,null,null,null,19]
[null,null,null,null,null,null,null,null,null,22]
[null,null,null,null,null,null,null,null,null,23]
[]
[null,null,null,null,null,null,null,null,null,{"$f":"platnost!$G$20","v":"Všechny spoje s bezbariérově přístupným vozidlem"}]

{"sheet":"Písecké rozcestí","index":10,"n_rows":32,"n_cols":36,"rows_kept":32,"cut":false,"hidden":false,"merged":[[0,22,3,25],[2,2,2,4]]}
["Platnost:",null,null,{"$f":"platnost!$A$1","v":"platí od 31.8.2025"},null,null,null,null,null,null,null,null,"informace: 381256366",null,null,null,null,null,null,null,null,null,17]
["COMETT PLUS, spol.s r.o.,Chýnovská 2115,Tábor 39002,mhd@comettplus.cz"]
["Linka : ",null,395017,null,null,null,null,null,null,"Zastávka:",null,null,{"$f":"E15","v":"Písecké rozcestí"}]
[null,null,"pásmo ","minut. vzdál."]
[0,null,"B",null,"Sezimovo Ústí II Kovosvit",null,null,null,null,null,"Pracovní dny",null,null,null,null,null,null,null,"Soboty",null,null,null,"Neděle + svátky",null,null,null,"Pracovní dny - omezení dopravy MHD"]
[2,null,"B",null,"Sezimovo Ústí I rozcestí",null,null,null,null,null,"Hod","minuty",null,null,null,null,null,null,"minuty",null,null,null,"minuty",null,null,null,{"$f":"platnost!$A$2","v":"    od 30.června do 29.srpna"}]
[1,null,"B",null,"Sezimovo Ústí I náměstí",null,null,null,null,null,0]
[2,null,"B",null,"sídl. Nad Lužnicí",null,null,null,null,null,1]
[3,null,"AB",null,"Nový hřbitov",null,null,null,null,null,2]
[1,null,"A",null,"Na Kopečku",null,null,null,null,null,3]
[2,null,"A",null,"Černé mosty",null,null,null,null,null,4]
[2,null,"A",null,"Autobusové nádraží",null,null,null,null,null,5,36,null,null,null,null,null,null,46,null,null,null,46,null,null,null,36]
[2,null,"A",null,"Poliklinika",null,null,null,null,null,6,49,null,null,null,null,null,null,46,null,null,null,46,null,null,null,49]
[2,null,"A",null,"U Reálky",null,null,null,null,null,7,11,36,null,null,null,null,null,21,null,null,null,21,null,null,null,36]
[2,"V","A",0,"Písecké rozcestí",null,null,null,null,null,8,21,null,null,null,null,null,null,6,null,null,null,6,null,null,null,31,46]
[2,"V","A",{"$f":"+D15+$A16","v":2},"Nemocnice",null,null,null,null,null,9,4,41,null,null,null,null,null,1,"51",null,null,1,"51",null,null,31]
[2,"V","A",{"$f":"+D16+$A17","v":4},"Zimní stadion",null,null,null,null,null,10,21,null,null,null,null,null,null,26,null,null,null,26,null,null,null,56]
[2,"V","A",{"$f":"+D17+$A18","v":6},"Petrohradská ",null,null,null,null,null,11,26,null,null,null,null,null,null,41,null,null,null,41,null,null,null,26,null,null,null,null,null,null,null,null,2]
[2,"V","A",{"$f":"+D18+$A19","v":8},"Klokoty",null,null,null,null,null,12,41,null,null,null,null,null,null,null,null,null,null,null,null,null,null,1,"41"]
[1,"V","A",{"$f":"+D19+$A20","v":9},"Klokoty točna",null,null,null,null,null,13,31,null,null,null,null,null,null,6,null,null,null,6,null,null,null,21]
[2,null,null,null,null,null,null,null,null,null,14,36,null,null,null,null,null,null,11,26,null,null,11,26,null,null,16,56]
[2,null,null,null,null,null,null,null,null,null,15,1,41,null,null,null,null,null,21,null,null,null,21,null,null,null,51]
[2,null,{"$f":"platnost!$A23","v":"jízdné 16,- Kč"},null,null,{"$f":"platnost!$D23","v":"platí 10 minut"},null,null,null,null,16,6,41,null,null,null,null,null,26,null,null,null,26,null,null,null,16]
[2,null,{"$f":"platnost!$A24","v":"jízdné 20,- Kč"},null,null,{"$f":"platnost!$D24","v":"platí 20 minut"},null,null,null,null,17,1,21,null,null,null,null,null,16,null,null,null,16,null,null,null,11,31]
[1,null,{"$f":"platnost!$A25","v":"jízdné 24,- Kč"},null,null,{"$f":"platnost!$D25","v":"platí 60 minut"},null,null,null,null,18,1,41,null,null,null,null,null,16,null,null,null,16,null,null,null,16]
[null,null,null,null,null,null,null,null,null,null,19,46,null,null,null,null,null,null,51,null,null,null,51,null,null,null,1,"16"]
[null,null,null,null,null,null,null,null,null,null,20,46,null,null,null,null,null,null,null,null,null,null,null,null,null,null,16,46]
[null,null,null,null,null,null,null,null,null,null,21,51,null,null,null,null,null,null,21,null,null,null,21]
[null,null,null,null,null,null,null,null,null,null,22]
[null,null,null,null,null,null,null,null,null,null,23]
[]
[null,null,null,null,null,null,null,null,null,null,{"$f":"platnost!$G$20","v":"Všechny spoje s bezbariérově přístupným vozidlem"}]

{"sheet":"Nemocnice","index":11,"n_rows":32,"n_cols":36,"rows_kept":32,"cut":false,"hidden":false,"merged":[[0,22,3,25],[2,2,2,4]]}
["Platnost:",null,null,{"$f":"platnost!$A$1","v":"platí od 31.8.2025"},null,null,null,null,null,null,null,null,"informace: 381256366",null,null,null,null,null,null,null,null,null,17]
["COMETT PLUS, spol.s r.o.,Chýnovská 2115,Tábor 39002,mhd@comettplus.cz"]
["Linka : ",null,395017,null,null,null,null,null,null,"Zastávka:",null,null,{"$f":"E16","v":"Nemocnice"}]
[null,null,"pásmo ","minut. vzdál."]
[0,null,"B",null,"Sezimovo Ústí II Kovosvit",null,null,null,null,"Pracovní dny",null,null,null,null,null,null,null,null,"Soboty",null,null,null,"Neděle + svátky",null,null,null,"Pracovní dny - omezení dopravy MHD"]
[2,null,"B",null,"Sezimovo Ústí I rozcestí",null,null,null,null,"Hod","minuty",null,null,null,null,null,null,null,"minuty",null,null,null,"minuty",null,null,null,{"$f":"platnost!$A$2","v":"    od 30.června do 29.srpna"}]
[1,null,"B",null,"Sezimovo Ústí I náměstí",null,null,null,null,0]
[2,null,"B",null,"sídl. Nad Lužnicí",null,null,null,null,1]
[3,null,"AB",null,"Nový hřbitov",null,null,null,null,2]
[1,null,"A",null,"Na Kopečku",null,null,null,null,3]
[2,null,"A",null,"Černé mosty",null,null,null,null,4]
[2,null,"A",null,"Autobusové nádraží",null,null,null,null,5,38,null,null,null,null,null,null,null,48,null,null,null,48,null,null,null,38]
[2,null,"A",null,"Poliklinika",null,null,null,null,6,51,null,null,null,null,null,null,null,48,null,null,null,48,null,null,null,51]
[2,null,"A",null,"U Reálky",null,null,null,null,7,13,38,null,null,null,null,null,null,23,null,null,null,23,null,null,null,38]
[2,null,"A",null,"Písecké rozcestí",null,null,null,null,8,23,null,null,null,null,null,null,null,8,null,null,null,8,null,null,null,33,48]
[2,"V","A",0,"Nemocnice",null,null,null,null,9,6,43,null,null,null,null,null,null,3,53,null,null,3,53,null,null,33]
[2,"V","A",{"$f":"+D16+$A17","v":2},"Zimní stadion",null,null,null,null,10,23,null,null,null,null,null,null,null,28,null,null,null,28,null,null,null,58,null,null,null,null,null,null,null,null,2]
[2,"V","A",{"$f":"+D17+$A18","v":4},"Petrohradská ",null,null,null,null,11,28,null,null,null,null,null,null,null,43,null,null,null,43,null,null,null,28]
[2,"V","A",{"$f":"+D18+$A19","v":6},"Klokoty",null,null,null,null,12,43,null,null,null,null,null,null,null,null,null,null,null,null,null,null,null,3,43]
[1,"V","A",{"$f":"+D19+$A20","v":7},"Klokoty točna",null,null,null,null,13,33,null,null,null,null,null,null,null,8,null,null,null,8,null,null,null,23]
[2,null,null,null,null,null,null,null,null,14,38,null,null,null,null,null,null,null,13,28,null,null,13,28,null,null,18,58]
[2,null,null,null,null,null,null,null,null,15,3,43,null,null,null,null,null,null,23,null,null,null,23,null,null,null,53]
[2,null,{"$f":"platnost!$A23","v":"jízdné 16,- Kč"},null,null,{"$f":"platnost!$D23","v":"platí 10 minut"},null,null,null,16,8,43,null,null,null,null,null,null,28,null,null,null,28,null,null,null,18]
[2,null,{"$f":"platnost!$A24","v":"jízdné 20,- Kč"},null,null,{"$f":"platnost!$D24","v":"platí 20 minut"},null,null,null,17,3,23,null,null,null,null,null,null,18,null,null,null,18,null,null,null,13,33]
[1,null,{"$f":"platnost!$A25","v":"jízdné 24,- Kč"},null,null,{"$f":"platnost!$D25","v":"platí 60 minut"},null,null,null,18,3,43,null,null,null,null,null,null,18,null,null,null,18,null,null,null,18]
[null,null,null,null,null,null,null,null,null,19,48,null,null,null,null,null,null,null,53,null,null,null,53,null,null,null,3,18]
[null,null,null,null,null,null,null,null,null,20,48,null,null,null,null,null,null,null,null,null,null,null,null,null,null,null,18,48]
[null,null,null,null,null,null,null,null,null,21,53,null,null,null,null,null,null,null,23,null,null,null,23]
[null,null,null,null,null,null,null,null,null,22]
[null,null,null,null,null,null,null,null,null,23]
[]
[null,null,null,null,null,null,null,null,null,{"$f":"platnost!$G$20","v":"Všechny spoje s bezbariérově přístupným vozidlem"}]

{"sheet":"Zimní stadion","index":12,"n_rows":32,"n_cols":36,"rows_kept":32,"cut":false,"hidden":false,"merged":[[0,22,3,25],[2,2,2,4]]}
["Platnost:",null,null,{"$f":"platnost!$A$1","v":"platí od 31.8.2025"},null,null,null,null,null,null,null,null,"informace: 381256366",null,null,null,null,null,null,null,null,null,17]
["COMETT PLUS, spol.s r.o.,Chýnovská 2115,Tábor 39002,mhd@comettplus.cz"]
["Linka : ",null,395017,null,null,null,null,null,null,"Zastávka:",null,null,"Zimní stadion"]
[null,null,"pásmo ","minut. vzdál."]
[0,null,"B",null,"Sezimovo Ústí II Kovosvit",null,null,null,null,null,"Pracovní dny",null,null,null,null,null,null,null,"Soboty",null,null,null,"Neděle + svátky",null,null,null,"Pracovní dny - omezení dopravy MHD"]
[2,null,"B",null,"Sezimovo Ústí I rozcestí",null,null,null,null,null,"Hod","minuty",null,null,null,null,null,null,"minuty",null,null,null,"minuty",null,null,null,{"$f":"platnost!$A$2","v":"    od 30.června do 29.srpna"}]
[1,null,"B",null,"Sezimovo Ústí I náměstí",null,null,null,null,null,0]
[2,null,"B",null,"sídl. Nad Lužnicí",null,null,null,null,null,1]
[3,null,"AB",null,"Nový hřbitov",null,null,null,null,null,2]
[1,null,"A",null,"Na Kopečku",null,null,null,null,null,3]
[2,null,"A",null,"Černé mosty",null,null,null,null,null,4]
[2,null,"A",null,"Autobusové nádraží",null,null,null,null,null,5,40,null,null,null,null,null,null,50,null,null,null,50,null,null,null,40]
[2,null,"A",null,"Poliklinika",null,null,null,null,null,6,53,null,null,null,null,null,null,50,null,null,null,50,null,null,null,53]
[2,null,"A",null,"U Reálky",null,null,null,null,null,7,15,40,null,null,null,null,null,25,null,null,null,25,null,null,null,40]
[2,null,"A",null,"Písecké rozcestí",null,null,null,null,null,8,25,null,null,null,null,null,null,10,null,null,null,10,null,null,null,35,50]
[2,null,"A",null,"Nemocnice",null,null,null,null,null,9,8,45,null,null,null,null,null,5,55,null,null,5,55,null,null,35]
[2,"V","A",0,"Zimní stadion",null,null,null,null,null,10,25,null,null,null,null,null,null,30,null,null,null,30]
[2,"V","A",{"$f":"+D17+$A18","v":2},"Petrohradská ",null,null,null,null,null,11,30,null,null,null,null,null,null,45,null,null,null,45,null,null,null,"00",30]
[2,"V","A",{"$f":"+D18+$A19","v":4},"Klokoty",null,null,null,null,null,12,45,null,null,null,null,null,null,null,null,null,null,null,null,null,null,5,45,null,null,null,null,null,null,null,2]
[1,"V","A",{"$f":"+D19+$A20","v":5},"Klokoty točna",null,null,null,null,null,13,35,null,null,null,null,null,null,10,null,null,null,10,null,null,null,25]
[2,null,null,null,null,null,null,null,null,null,14,40,null,null,null,null,null,null,15,30,null,null,15,30,null,null,20]
[2,null,null,null,null,null,null,null,null,null,15,5,45,null,null,null,null,null,25,null,null,null,25,null,null,null,"00",55]
[2,null,{"$f":"platnost!$A23","v":"jízdné 16,- Kč"},null,null,{"$f":"platnost!$D23","v":"platí 10 minut"},null,null,null,null,16,10,45,null,null,null,null,null,30,null,null,null,30,null,null,null,20]
[2,null,{"$f":"platnost!$A24","v":"jízdné 20,- Kč"},null,null,{"$f":"platnost!$D24","v":"platí 20 minut"},null,null,null,null,17,5,25,null,null,null,null,null,20,null,null,null,20,null,null,null,15,35]
[1,null,{"$f":"platnost!$A25","v":"jízdné 24,- Kč"},null,null,{"$f":"platnost!$D25","v":"platí 60 minut"},null,null,null,null,18,5,45,null,null,null,null,null,20,null,null,null,20,null,null,null,20]
[null,null,null,null,null,null,null,null,null,null,19,50,null,null,null,null,null,null,55,null,null,null,55,null,null,null,5,20]
[null,null,null,null,null,null,null,null,null,null,20,50,null,null,null,null,null,null,null,null,null,null,null,null,null,null,20,50]
[null,null,null,null,null,null,null,null,null,null,21,55,null,null,null,null,null,null,25,null,null,null,25]
[null,null,null,null,null,null,null,null,null,null,22]
[null,null,null,null,null,null,null,null,null,null,23]
[]
[null,null,null,null,null,null,null,null,null,null,{"$f":"platnost!$G$20","v":"Všechny spoje s bezbariérově přístupným vozidlem"}]

{"sheet":"Petrohradská ","index":13,"n_rows":32,"n_cols":36,"rows_kept":32,"cut":false,"hidden":false,"merged":[[0,22,3,25],[2,2,2,4]]}
["Platnost:",null,null,{"$f":"platnost!$A$1","v":"platí od 31.8.2025"},null,null,null,null,null,null,null,null,"informace: 381256366",null,null,null,null,null,null,null,null,null,17]
["COMETT PLUS, spol.s r.o.,Chýnovská 2115,Tábor 39002,mhd@comettplus.cz"]
["Linka : ",null,395017,null,null,null,null,null,null,"Zastávka:",null,null,"Petrohradská "]
[null,null,"pásmo ","minut. vzdál."]
[0,null,"B",null,"Sezimovo Ústí II Kovosvit",null,null,null,null,null,"Pracovní dny",null,null,null,null,null,null,null,"Soboty",null,null,null,"Neděle + svátky",null,null,null,"Pracovní dny - omezení dopravy MHD"]
[2,null,"B",null,"Sezimovo Ústí I rozcestí",null,null,null,null,null,"Hod","minuty",null,null,null,null,null,null,"minuty",null,null,null,"minuty",null,null,null,{"$f":"platnost!$A$2","v":"    od 30.června do 29.srpna"}]
[1,null,"B",null,"Sezimovo Ústí I náměstí",null,null,null,null,null,0]
[2,null,"B",null,"sídl. Nad Lužnicí",null,null,null,null,null,1]
[3,null,"AB",null,"Nový hřbitov",null,null,null,null,null,2]
[1,null,"A",null,"Na Kopečku",null,null,null,null,null,3]
[2,null,"A",null,"Černé mosty",null,null,null,null,null,4]
[2,null,"A",null,"Autobusové nádraží",null,null,null,null,null,5,42,null,null,null,null,null,null,52,null,null,null,52,null,null,null,42]
[2,null,"A",null,"Poliklinika",null,null,null,null,null,6,55,null,null,null,null,null,null,52,null,null,null,52,null,null,null,55]
[2,null,"A",null,"U Reálky",null,null,null,null,null,7,17,42,null,null,null,null,null,27,null,null,null,27,null,null,null,42]
[2,null,"A",null,"Písecké rozcestí",null,null,null,null,null,8,27,null,null,null,null,null,null,12,null,null,null,12,null,null,null,37,52]
[2,null,"A",null,"Nemocnice",null,null,null,null,null,9,10,47,null,null,null,null,null,7,57,null,null,7,57,null,null,37]
[2,null,"A",null,"Zimní stadion",null,null,null,null,null,10,27,null,null,null,null,null,null,32,null,null,null,32]
[2,"V","A",0,"Petrohradská ",null,null,null,null,null,11,32,null,null,null,null,null,null,47,null,null,null,47,null,null,null,2,32]
[2,"V","A",{"$f":"+D18+$A19","v":2},"Klokoty",null,null,null,null,null,12,47,null,null,null,null,null,null,null,null,null,null,null,null,null,null,7,47]
[1,"V","A",{"$f":"+D19+$A20","v":3},"Klokoty točna",null,null,null,null,null,13,37,null,null,null,null,null,null,12,null,null,null,12,null,null,null,27,null,null,null,null,null,null,null,null,2]
[2,null,null,null,null,null,null,null,null,null,14,42,null,null,null,null,null,null,17,32,null,null,17,32,null,null,22]
[2,null,null,null,null,null,null,null,null,null,15,7,47,null,null,null,null,null,27,null,null,null,27,null,null,null,2,57]
[2,null,{"$f":"platnost!$A23","v":"jízdné 16,- Kč"},null,null,{"$f":"platnost!$D23","v":"platí 10 minut"},null,null,null,null,16,12,47,null,null,null,null,null,32,null,null,null,32,null,null,null,22]
[2,null,{"$f":"platnost!$A24","v":"jízdné 20,- Kč"},null,null,{"$f":"platnost!$D24","v":"platí 20 minut"},null,null,null,null,17,7,27,null,null,null,null,null,22,null,null,null,22,null,null,null,17,37]
[1,null,{"$f":"platnost!$A25","v":"jízdné 24,- Kč"},null,null,{"$f":"platnost!$D25","v":"platí 60 minut"},null,null,null,null,18,7,47,null,null,null,null,null,22,null,null,null,22,null,null,null,22]
[null,null,null,null,null,null,null,null,null,null,19,52,null,null,null,null,null,null,57,null,null,null,57,null,null,null,7,22]
[null,null,null,null,null,null,null,null,null,null,20,52,null,null,null,null,null,null,null,null,null,null,null,null,null,null,22,52]
[null,null,null,null,null,null,null,null,null,null,21,57,null,null,null,null,null,null,27,null,null,null,27]
[null,null,null,null,null,null,null,null,null,null,22]
[null,null,null,null,null,null,null,null,null,null,23]
[]
[null,null,null,null,null,null,null,null,null,null,{"$f":"platnost!$G$20","v":"Všechny spoje s bezbariérově přístupným vozidlem"}]

{"sheet":"Klokoty","index":14,"n_rows":32,"n_cols":36,"rows_kept":32,"cut":false,"hidden":false,"merged":[[0,22,3,25],[2,2,2,4]]}
["Platnost:",null,null,{"$f":"platnost!$A$1","v":"platí od 31.8.2025"},null,null,null,null,null,null,null,null,"informace: 381256366",null,null,null,null,null,null,null,null,null,17]
["COMETT PLUS, spol.s r.o.,Chýnovská 2115,Tábor 39002,mhd@comettplus.cz"]
["Linka : ",null,395017,null,null,null,null,null,null,"Zastávka:",null,null,"Klokoty"]
[null,null,"pásmo ","minut. vzdál."]
[0,null,"B",null,"Sezimovo Ústí II Kovosvit",null,null,null,null,null,"Pracovní dny",null,null,null,null,null,null,null,"Soboty",null,null,null,"Neděle + svátky",null,null,null,"Pracovní dny - omezení dopravy MHD"]
[2,null,"B",null,"Sezimovo Ústí I rozcestí",null,null,null,null,null,"Hod","minuty",null,null,null,null,null,null,"minuty",null,null,null,"minuty",null,null,null,{"$f":"platnost!$A$2","v":"    od 30.června do 29.srpna"}]
[1,null,"B",null,"Sezimovo Ústí I náměstí",null,null,null,null,null,0]
[2,null,"B",null,"sídl. Nad Lužnicí",null,null,null,null,null,1]
[3,null,"AB",null,"Nový hřbitov",null,null,null,null,null,2]
[1,null,"A",null,"Na Kopečku",null,null,null,null,null,3]
[2,null,"A",null,"Černé mosty",null,null,null,null,null,4]
[2,null,"A",null,"Autobusové nádraží",null,null,null,null,null,5,44,null,null,null,null,null,null,54,null,null,null,54,null,null,null,44]
[2,null,"A",null,"Poliklinika",null,null,null,null,null,6,57,null,null,null,null,null,null,54,null,null,null,54,null,null,null,57]
[2,null,"A",null,"U Reálky",null,null,null,null,null,7,19,44,null,null,null,null,null,29,null,null,null,29,null,null,null,44]
[2,null,"A",null,"Písecké rozcestí",null,null,null,null,null,8,29,null,null,null,null,null,null,14,null,null,null,14,null,null,null,39,54]
[2,null,"A",null,"Nemocnice",null,null,null,null,null,9,12,49,null,null,null,null,null,9,59,null,null,9,59,null,null,39]
[2,null,"A",null,"Zimní stadion",null,null,null,null,null,10,29,null,null,null,null,null,null,34,null,null,null,34]
[2,null,"A",null,"Petrohradská ",null,null,null,null,null,11,34,null,null,null,null,null,null,49,null,null,null,49,null,null,null,4,34]
[2,"V","A",0,"Klokoty",null,null,null,null,null,12,49,null,null,null,null,null,null,null,null,null,null,null,null,null,null,9,49,null,null,null,null,null,null,null,2]
[1,"V","A",{"$f":"+D19+$A20","v":1},"Klokoty točna",null,null,null,null,null,13,39,null,null,null,null,null,null,14,null,null,null,14,null,null,null,29]
[2,null,null,null,null,null,null,null,null,null,14,44,null,null,null,null,null,null,19,34,null,null,19,34,null,null,24]
[2,null,null,null,null,null,null,null,null,null,15,9,49,null,null,null,null,null,29,null,null,null,29,null,null,null,4,59]
[2,null,{"$f":"platnost!$A23","v":"jízdné 16,- Kč"},null,null,{"$f":"platnost!$D23","v":"platí 10 minut"},null,null,null,null,16,14,49,null,null,null,null,null,34,null,null,null,34,null,null,null,24]
[2,null,{"$f":"platnost!$A24","v":"jízdné 20,- Kč"},null,null,{"$f":"platnost!$D24","v":"platí 20 minut"},null,null,null,null,17,9,29,null,null,null,null,null,24,null,null,null,24,null,null,null,19,39]
[1,null,{"$f":"platnost!$A25","v":"jízdné 24,- Kč"},null,null,{"$f":"platnost!$D25","v":"platí 60 minut"},null,null,null,null,18,9,49,null,null,null,null,null,24,null,null,null,24,null,null,null,24]
[null,null,null,null,null,null,null,null,null,null,19,54,null,null,null,null,null,null,59,null,null,null,59,null,null,null,9,24]
[null,null,null,null,null,null,null,null,null,null,20,54,null,null,null,null,null,null,null,null,null,null,null,null,null,null,24,54]
[null,null,null,null,null,null,null,null,null,null,21,59,null,null,null,null,null,null,29,null,null,null,29]
[null,null,null,null,null,null,null,null,null,null,22]
[null,null,null,null,null,null,null,null,null,null,23]
[]
[null,null,null,null,null,null,null,null,null,null,{"$f":"platnost!$G$20","v":"Všechny spoje s bezbariérově přístupným vozidlem"}]